fUSD/lending_fUSD_20240518
["ID","MTS","AMOUNT","RATE_DAILY","PERIOD"]
[327349439,1716005440898,-163.39,0.00034699,2]
[327349441,1716005440907,-420.56,0.00034699,2]
[327349443,1716005440916,-351.66,0.00034699,2]
[327349445,1716005440926,-163.39,0.00034699,2]
[327349447,1716005440935,-420.56,0.00034699,2]
[327349449,1716005440945,-351.66,0.00034699,2]
[327349451,1716005440954,-163.39,0.00034699,2]
[327349453,1716005440963,-420.56,0.00034699,2]
[327349455,1716005440972,-351.66,0.00034699,2]
[327349457,1716005440982,-163.39,0.00034699,2]
[327349459,1716005440991,-420.56,0.00034699,2]
[327349461,1716005441000,-700.26,0.00034699,2]
[327349463,1716005441009,-163.39,0.00034699,2]
[327349465,1716005441018,-420.56,0.00034699,2]
[327349467,1716005441027,-163.39,0.00034699,2]
[327349469,1716005441037,-420.56,0.00034699,2]
[327349471,1716005441046,-163.39,0.00034699,2]
[327349473,1716005441055,-420.56,0.00034699,2]
[327349475,1716005441064,-163.39,0.00034699,2]
[327349477,1716005441073,-163.39,0.00034699,2]
[327349479,1716005441082,-163.39,0.00034699,2]
[327349480,1716005441091,-314.051813,0.00034748,34]
[327349482,1716005441101,-2727.04028192,0.00034809,7]
[327349484,1716005441110,-451.051813,0.00034948,36]
[327349486,1716005441119,-491.60572532,0.00034999,2]
[327349488,1716005441128,-1114.94332679,0.00035,30]
[327349490,1716005441137,-29311.28890874,0.00035,4]
[327349492,1716005441148,-314.051813,0.00035148,34]
[327349494,1716005441157,-150.0,0.00035328,2]
[327349496,1716005441166,-322.34213032,0.00035426,2]
[327349498,1716005441175,-314.051813,0.00035448,36]
[327349500,1716005441185,-1287.84909967,0.00035579,2]
[327349502,1716005441194,-314.051813,0.00035748,36]
[327349504,1716005441203,-2000.0,0.000359,2]
[327349506,1716005441212,-265.88,0.00035915,120]
[327349508,1716005441221,-700.0,0.00035922,10]
[327349510,1716005441230,-3800.0,0.00035922,10]
[327349512,1716005441239,-500.0,0.00035922,10]
[327349514,1716005441248,-900.0,0.00035922,10]
[327349516,1716005441258,-4700.0,0.00035922,10]
[327349518,1716005441267,-314.051813,0.00035948,38]
[327349520,1716005441276,-150.0,0.00036049,2]
[327349522,1716005441285,-466.0,0.00036138,5]
[327349524,1716005441294,-314.051813,0.00036148,36]
[327349526,1716005441303,-314.051813,0.00036448,38]
[327349528,1716005441312,-700.0,0.0003647,10]
[327349530,1716005441321,-3800.0,0.0003647,10]
[327349532,1716005441330,-500.0,0.0003647,10]
[327349533,1716005441339,-900.0,0.0003647,10]
[327349535,1716005441348,-4700.0,0.0003647,10]
[327349537,1716005441357,-314.051813,0.00036748,38]
[327349539,1716005441367,-150.0,0.0003677,2]
[327349540,1716005441376,-2727.04028192,0.00036818,9]
[327349542,1716005441385,-314.051813,0.00036948,40]
[327349544,1716005441395,-700.0,0.00037018,10]
[327349546,1716005441404,-3800.0,0.00037018,10]
[327349548,1716005441414,-500.0,0.00037018,10]
[327349549,1716005441423,-900.0,0.00037018,10]
[327349551,1716005441433,-4700.0,0.00037018,10]
[327349553,1716005441442,-314.051813,0.00037148,38]
[327349555,1716005441452,-314.051813,0.00037448,40]
[327349557,1716005441464,-150.0,0.00037491,2]
[327349558,1716005441476,-387.2,0.00037499,2]
[327349560,1716005441485,-700.0,0.00037566,10]
[327349562,1716005441495,-3800.0,0.00037566,10]
[327349564,1716005441506,-500.0,0.00037566,10]
[327349566,1716005441515,-900.0,0.00037566,10]
[327349567,1716005441524,-4700.0,0.00037566,10]
[327349569,1716005441533,-580.29449956,0.00037567,2]
[327349571,1716005441543,-2059.77144597,0.000377,4]
[327349573,1716005441553,-314.051813,0.00037748,40]
[327349574,1716005441563,-1287.84909967,0.00037934,2]
[327349576,1716005441573,-314.051813,0.00037948,42]
[327349578,1716005441582,-179.02812795,0.00038,120]
[327349580,1716005441591,-3800.0,0.00038114,10]
[327349582,1716005441600,-314.051813,0.00038148,40]
[327349584,1716005441610,-150.0,0.00038212,2]
[327349585,1716005441620,-182.06,0.00038356,2]
[327349587,1716005441629,-314.051813,0.00038448,42]
[327349589,1716005441638,-3800.0,0.00038662,10]
[327349591,1716005441649,-700.0,0.00038662,10]
[327349593,1716005441658,-500.0,0.00038662,10]
[327349595,1716005441667,-900.0,0.00038662,10]
[327349597,1716005441676,-4700.0,0.00038662,10]
[327349599,1716005441685,-322.34213032,0.00038663,2]
[327349600,1716005441694,-314.051813,0.00038748,42]
[327349602,1716005441704,-2727.04028192,0.00038827,12]
[327349604,1716005441713,-885.15310528,0.000389,30]
[327349606,1716005441722,-150.0,0.00038933,2]
[327349608,1716005441731,-314.051813,0.00038948,44]
[327349610,1716005441741,-141209.55537453,0.00039,14]
[327349623,1716005441876,-8790.44462547,0.00039,14]
[327349624,1716005441886,-151.0,0.00039,14]
[327349626,1716005441896,-151.0,0.00039,14]
[327349628,1716005441905,-151.0,0.00039,14]
[327349630,1716005441916,-151.0,0.00039,14]
[327349631,1716005441925,-151.0,0.00039,14]
[327349632,1716005441934,-151.0,0.00039,14]
[327349633,1716005441944,-151.0,0.00039,14]
[327349634,1716005441953,-151.0,0.00039,14]
[327349635,1716005441962,-168.037798,0.00039,14]
[327349636,1716005441971,-151.0,0.00039,14]
[327349637,1716005441980,-151.0,0.00039,14]
[327349638,1716005441989,-151.0,0.00039,14]
[327349639,1716005441998,-151.0,0.00039,2]
[327349640,1716005442007,-151.0,0.00039,14]
[327349641,1716005442016,-170.674796,0.00039,14]
[327349642,1716005442026,-170.674796,0.00039,14]
[327349643,1716005442035,-151.0,0.00039,14]
[327349644,1716005442044,-752.28909,0.00039,14]
[327349645,1716005442053,-752.28909,0.00039,14]
[327349646,1716005442062,-151.0,0.00039,14]
[327349647,1716005442072,-314.051813,0.00039148,42]
[327349648,1716005442081,-151.0,0.00039151,14]
[327349649,1716005442091,-3800.0,0.0003921,10]
[327349651,1716005442100,-314.051813,0.00039448,44]
[327349653,1716005442109,-150.0,0.00039654,2]
[327349655,1716005442118,-314.051813,0.00039748,44]
[327349657,1716005442128,-3800.0,0.00039758,10]
[327349659,1716005442137,-700.0,0.00039758,10]
[327349660,1716005442146,-500.0,0.00039758,10]
[327349672,1716005442273,-900.0,0.00039758,10]
[327349673,1716005442283,-4700.0,0.00039758,10]
[327349674,1716005442292,-960.05463042,0.0003984,10]
[327349675,1716005442301,-232.32,0.0003987,2]
[327349676,1716005442311,-314.051813,0.00039948,46]
[327349677,1716005442320,-290.28168513,0.0004,2]
[327349678,1716005442329,-155.0,0.0004,4]
[327349679,1716005442338,-3579.53252172,0.0004,20]
[327349680,1716005442347,-698.96771964,0.0004,4]
[327349681,1716005442357,-2711.55365022,0.0004,4]
[327349682,1716005442366,-33292.76901658,0.0004,4]
[327349683,1716005442375,-790.36,0.0004,120]
[327349684,1716005442385,-379.19958869,0.0004,30]
[327349686,1716005442394,-288.53186192,0.0004,120]
[327349688,1716005442404,-491.24300228,0.0004001,30]
[327349690,1716005442413,-314.051813,0.00040148,44]
[327349691,1716005442421,-1287.84909967,0.00040289,2]
[327349692,1716005442431,-150.0,0.00040375,2]
[327349693,1716005442440,-314.051813,0.00040448,46]
[327349694,1716005442449,-185.57992379,0.00040481,2]
[327349695,1716005442460,-11233.52651273,0.00040481,2]
[327349696,1716005442470,-1996.49571391,0.00040481,2]
[327349697,1716005442480,-392.2970586,0.00040481,2]
[327349698,1716005442489,-132705.29521028,0.00040581,7]
[327349699,1716005442502,-1692.46767706,0.00040581,7]
[327349700,1716005442513,-47616.29517266,0.00040581,7]
[327349701,1716005442522,-151.0,0.00040581,14]
[327349702,1716005442531,-151.0,0.00040581,14]
[327349703,1716005442540,-151.0,0.00040581,14]
[327349704,1716005442551,-151.0,0.00040581,14]
[327349705,1716005442561,-151.0,0.00040581,14]
[327349706,1716005442570,-752.28909,0.00040581,14]
[327349707,1716005442579,-752.28909,0.00040581,14]
[327349708,1716005442588,-200.616696,0.00040648,14]
[327349709,1716005442597,-314.051813,0.00040748,46]
[327349710,1716005442607,-151.0,0.00040836,14]
[327349711,1716005442618,-151.0,0.00040836,14]
[327349712,1716005442627,-151.0,0.00040836,14]
[327349713,1716005442636,-151.0,0.00040836,14]
[327349714,1716005442645,-2727.04028192,0.00040836,14]
[327349715,1716005442655,-158.43504908,0.00040849,2]
[327349716,1716005442664,-3800.0,0.00040854,10]
[327349717,1716005442673,-700.0,0.00040854,10]
[327349718,1716005442682,-500.0,0.00040854,10]
[327349719,1716005442692,-900.0,0.00040854,10]
[327349720,1716005442701,-4700.0,0.00040854,10]
[327349721,1716005442711,-151.0,0.00040854,2]
[327349722,1716005442720,-151.0,0.00040854,14]
[327349723,1716005442730,-170.674796,0.00040854,14]
[327349724,1716005442739,-170.674796,0.00040854,14]
[327349726,1716005442748,-151.0,0.00040854,14]
[327349727,1716005442757,-387.2,0.00040908,2]
[327349728,1716005442766,-314.051813,0.00040948,48]
[327349729,1716005442775,-150.0,0.00041004,120]
[327349730,1716005442784,-2000.0,0.00041095,30]
[327349732,1716005442793,-2000.0,0.00041095,30]
[327349734,1716005442802,-2000.0,0.00041095,30]
[327349736,1716005442811,-2000.0,0.00041095,30]
[327349737,1716005442820,-2000.0,0.00041095,30]
[327349738,1716005442829,-2000.0,0.00041095,30]
[327349739,1716005442838,-2000.0,0.00041095,30]
[327349740,1716005442847,-895.60893202,0.00041095,30]
[327349741,1716005442857,-3032.46855365,0.00041095,30]
[327349742,1716005442866,-151.0,0.00041095,14]
[327349743,1716005442875,-1000.0,0.00041095,30]
[327349744,1716005442884,-1000.0,0.00041095,30]
[327349745,1716005442893,-1037.15094732,0.00041095,30]
[327349747,1716005442904,-157.0,0.00041096,2]
[327349748,1716005442913,-2500.0,0.00041096,30]
[327349750,1716005442922,-150.0,0.00041096,2]
[327349752,1716005442932,-156.21,0.00041132,2]
[327349754,1716005442941,-314.051813,0.00041148,46]
[327349756,1716005442951,-580.29449956,0.00041233,2]
[327349758,1716005442960,-2000.0,0.000414,2]
[327349760,1716005442969,-314.051813,0.00041448,48]
[327349762,1716005442978,-12352.62180931,0.00041724,10]
[327349764,1716005442988,-314.051813,0.00041748,48]
[327349765,1716005442997,-322.34213032,0.000419,2]
[327349766,1716005443005,-314.051813,0.00041948,50]
[327349767,1716005443014,-3800.0,0.0004195,30]
[327349768,1716005443024,-700.0,0.0004195,30]
[327349769,1716005443032,-82.3990908,0.0004195,30]
[327349770,1716005443051,-417.6009092,0.0004195,30]
[327349771,1716005443062,-900.0,0.0004195,30]
[327349772,1716005443073,-459.3990908,0.0004195,30]
[327349773,1716005443164,-160.92067864,0.000269,2]
[327349774,1716005443173,-176.45332136,0.0004195,30]
[327349775,1716005443185,-2800.0,0.0004195,30]
[327349776,1716005443198,-433.65476328,0.0004195,30]
[327349777,1716005443209,-358.8200025,0.0004195,30]
[327349778,1716005443222,-471.67282206,0.0004195,30]
[327349779,1716005443232,-616.76720745,0.00042,30]
[327349780,1716005443245,-9580.66238232,0.00042,30]
[327349781,1716005443257,-314.68072774,0.00042,30]
[327349782,1716005443268,-1105.97695093,0.00042,30]
[327349783,1716005443279,-515.5928677,0.00042,30]
[327349784,1716005443291,-1191.88699385,0.00042,30]
[327349785,1716005443304,-3258.19472346,0.00042,30]
[327349786,1716005443315,-8590.43286449,0.00042,30]
[327349787,1716005443326,-14409.3705507,0.00042,30]
[327349788,1716005443335,-490.12307429,0.00042,120]
[327349789,1716005443344,-151.0,0.00042,14]
[327349790,1716005443353,-151.0,0.00042,14]
[327349791,1716005443361,-151.0,0.00042,14]
[327349792,1716005443370,-151.0,0.00042,14]
[327349793,1716005443379,-150.0,0.00042,11]
[327349794,1716005443388,-314.051813,0.00042148,48]
[327349795,1716005443397,-314.051813,0.00042448,50]
[327349796,1716005443406,-3800.0,0.00042498,30]
[327349797,1716005443415,-700.0,0.00042498,30]
[327349798,1716005443424,-500.0,0.00042498,30]
[327349799,1716005443434,-900.0,0.00042498,30]
[327349800,1716005443442,-4700.0,0.00042498,30]
[327349801,1716005443452,-150.0,0.000425,11]
[327349802,1716005443461,-1287.84909967,0.00042644,2]
[327349803,1716005443476,-11233.52651272,0.00042691,2]
[327349804,1716005443487,-1996.49571391,0.00042691,2]
[327349805,1716005443496,-392.2970586,0.00042691,2]
[327349806,1716005443507,-2550.0,0.000427,92]
[327349807,1716005443516,-314.051813,0.00042748,50]
[327349808,1716005443527,-2727.04028192,0.00042845,17]
[327349809,1716005443536,-314.051813,0.00042948,52]
[327349810,1716005443548,-472.23678054,0.00043,30]
[327349811,1716005443557,-307.34086525,0.00043,120]
[327349812,1716005443566,-150.0,0.00043,11]
[327349813,1716005443576,-3800.0,0.00043046,30]
[327349814,1716005443585,-700.0,0.00043046,30]
[327349815,1716005443594,-500.0,0.00043046,30]
[327349817,1716005443603,-900.0,0.00043046,30]
[327349818,1716005443612,-4700.0,0.00043046,30]
[327349820,1716005443621,-314.051813,0.00043148,50]
[327349822,1716005443630,-591.87489295,0.00043191,120]
[327349823,1716005443639,-314.051813,0.00043448,52]
[327349825,1716005443649,-150.0,0.000435,11]
[327349827,1716005443657,-3800.0,0.00043594,30]
[327349828,1716005443666,-700.0,0.00043594,30]
[327349830,1716005443676,-500.0,0.00043594,30]
[327349831,1716005443685,-900.0,0.00043594,30]
[327349833,1716005443695,-4700.0,0.00043594,30]
[327349835,1716005443704,-635.53381204,0.00043698,120]
[327349837,1716005443714,-500.0,0.00043698,120]
[327349839,1716005443723,-314.051813,0.00043748,52]
[327349840,1716005443732,-500.0,0.00043836,14]
[327349842,1716005443741,-700.0,0.00043868,30]
[327349843,1716005443750,-200.07719303,0.0004392,60]
[327349844,1716005443759,-314.051813,0.00043948,54]
[327349845,1716005443769,-500.0,0.00043972,120]
[327349846,1716005443778,-1661.380353,0.00044,44]
[327349847,1716005443787,-150.0,0.00044,12]
[327349848,1716005443796,-200.0,0.00044029,120]
[327349849,1716005443806,-1000.0,0.00044029,120]
[327349850,1716005443816,-3800.0,0.00044142,30]
[327349851,1716005443826,-700.0,0.00044142,30]
[327349852,1716005443836,-500.0,0.00044142,30]
[327349853,1716005443845,-900.0,0.00044142,30]
[327349854,1716005443854,-4700.0,0.00044142,30]
[327349855,1716005443863,-314.051813,0.00044148,52]
[327349856,1716005443872,-778.29249238,0.00044151,8]
[327349857,1716005443882,-200.40347205,0.00044246,120]
[327349858,1716005443893,-269.0,0.00044384,30]
[327349859,1716005443902,-583.78,0.00044384,120]
[327349860,1716005443912,-700.0,0.00044416,30]
[327349861,1716005443922,-314.051813,0.00044448,54]
[327349862,1716005443931,-150.0,0.000445,12]
[327349863,1716005443940,-316.73066427,0.0004455,3]
[327349864,1716005443949,-1145.18212716,0.00044555,10]
[327349865,1716005443958,-151.0,0.00044583,2]
[327349866,1716005443966,-200.0,0.00044629,120]
[327349867,1716005443975,-1000.0,0.00044629,120]
[327349868,1716005443984,-3800.0,0.0004469,30]
[327349869,1716005443993,-700.0,0.0004469,30]
[327349870,1716005444002,-196.67413658,0.0004469,30]
[327349871,1716005444011,-223.78090479,0.0004469,30]
[327349872,1716005444020,-1858.7311075,0.0004469,30]
[327349873,1716005444029,-161.46,0.00044726,2]
[327349874,1716005444039,-314.051813,0.00044748,54]
[327349875,1716005444048,-2727.04028192,0.00044855,20]
[327349876,1716005444058,-59427.52162176,0.000449,2]
[327349877,1716005444074,-3387.52340735,0.000449,2]
[327349878,1716005444086,-2422.20734889,0.000449,2]
[327349879,1716005444099,-669.3090582,0.000449,2]
[327349880,1716005444111,-22706.24421032,0.000449,2]
[327349881,1716005444126,-550.20020415,0.000449,2]
[327349882,1716005444224,-212.1043,0.000289,2]
[327349883,1716005444233,-301.9057,0.000449,2]
[327349884,1716005444244,-744.5,0.000449,2]
[327349885,1716005444255,-2992.66047825,0.000449,2]
[327349886,1716005444269,-250.0,0.00031134,2]
[327349887,1716005444278,-13.95605343,0.000449,2]
[327349888,1716005444289,-300.0,0.000449,2]
[327349889,1716005444300,-4149.46000906,0.000449,2]
[327349890,1716005444310,-931.14427352,0.000449,2]
[327349891,1716005444321,-3224.73762716,0.000449,2]
[327349892,1716005444332,-302.0,0.000449,2]
[327349893,1716005445877,-240.4692239,0.00017259,2]
[327349894,1716005445890,-306.15892917,0.00017259,2]
[327349895,1716005445899,-160.92067864,0.0003164,2]
[327349896,1716005445908,-2806.74319028,0.000449,2]
[327349897,1716005445919,-7039.04789997,0.000449,2]
[327349898,1716005445930,-41068.81970123,0.000449,2]
[327349899,1716005445941,-51544.63695263,0.000449,2]
[327349900,1716005445952,-338.43840616,0.000449,2]
[327349901,1716005445965,-4368.11219125,0.000449,2]
[327349902,1716005446047,-160.76,0.00043685,120]
[327349903,1716005446057,-103244.04553468,0.000449,2]
[327349908,1716005792188,170.86885002,5e-05,2]
[327349909,1716005823636,362.03367209,5e-05,2]
[327349910,1716005841554,362.03367209,5e-05,2]
[327349919,1716006381853,-155.0,0.00011033,2]
[327349920,1716006381875,-3845.0,0.00011033,2]
[327349921,1716006382592,-582.93566092,0.00011033,2]
[327349922,1716006382612,-155.0,0.00011034,2]
[327349923,1716006382632,-155.0,0.00011034,2]
[327349924,1716006382652,-3107.06433908,0.00011034,2]
[327349925,1716006383418,-4000.0,0.00011034,2]
[327349926,1716006384129,-408.08829682,0.00011034,2]
[327349927,1716006384149,-686.12362517,0.00011035,2]
[327349928,1716006384170,-446.46734959,0.00011035,2]
[327349929,1716006384191,-155.0,0.00011035,2]
[327349930,1716006384211,-790.58716775,0.00011036,2]
[327349931,1716006384234,-1513.73356067,0.00011125,2]
[327349932,1716006386128,-4000.0,0.00011125,2]
[327349933,1716006386456,-4000.0,0.00011125,2]
[327349934,1716006387454,-4000.0,0.00011125,2]
[327349935,1716006388452,-4000.0,0.00011125,2]
[327349936,1716006397333,-1620.12547327,0.00011124,2]
[327349937,1716006397353,-200.89902712,0.00011124,2]
[327349938,1716006397374,-546.75884339,0.00011124,2]
[327349939,1716006397395,-1539.21665622,0.00011125,2]
[327349945,1716006471743,250.0,0.00010414,2]
[327349948,1716006562035,150.31,0.00010416,2]
[327349949,1716006564769,1852.42,0.00010416,2]
[327349952,1716006574917,1050.25,0.00010416,2]
[327349953,1716006586481,257.7,0.00010472,2]
[327349954,1716006586774,257.7,0.000105,2]
[327349955,1716006586995,257.7,0.00010529,2]
[327349956,1716006587203,257.7,0.00010558,2]
[327349957,1716006587434,257.7,0.00010587,2]
[327349958,1716006587646,257.7,0.00010615,2]
[327349959,1716006587863,257.7,0.00010644,2]
[327349960,1716006588133,257.7,0.00010673,2]
[327349961,1716006588429,257.7,0.00010701,2]
[327349962,1716006588702,257.7,0.0001073,2]
[327349963,1716006588928,257.7,0.00010759,2]
[327349964,1716006589475,257.7,0.00010788,2]
[327349965,1716006589591,257.7,0.00010816,2]
[327349966,1716006589906,257.7,0.00010845,2]
[327349967,1716006590132,72.83463333,0.00010874,2]
[327349968,1716006590157,184.86536667,0.00010874,2]
[327349969,1716006590343,257.7,0.00010902,2]
[327349970,1716006590544,257.7,0.00010931,2]
[327349971,1716006590788,257.7,0.0001096,2]
[327349972,1716006590957,257.7,0.00010989,2]
[327349975,1716006600646,784.88,0.00010959,2]
[327349976,1716006614382,963.55,0.00010416,2]
[327349979,1716006632001,-257.7,0.00011017,2]
[327349980,1716006632010,-361.95012665,0.00011113,2]
[327349981,1716006632021,-2645.91423688,0.00011113,2]
[327349982,1716006632031,-446.46734959,0.00011114,2]
[327349983,1716006632041,-546.75884339,0.00011114,2]
[327349984,1716006632049,-150.0,0.00011114,2]
[327349985,1716006632059,-150.0,0.00011114,2]
[327349986,1716006632068,-35357.46203519,0.00011114,2]
[327349987,1716006632078,-5562.38640349,0.00011115,2]
[327349988,1716006632087,-155.0,0.00011115,2]
[327349989,1716006632096,-156.3457609,0.00011116,2]
[327349990,1716006632105,-1207.15079676,0.0001112,2]
[327349991,1716006632115,-200.8236604,0.00011123,2]
[327349992,1716006632272,-155.0,0.00011123,2]
[327349993,1716006632283,-2004.95025511,0.00011123,2]
[327349994,1716006632292,-285.93045245,0.00011124,2]
[327349995,1716006632303,-2235.31262442,0.00011124,2]
[327349996,1716006632313,-157.39299912,0.00011124,2]
[327349997,1716006632323,-156.44015756,0.00011124,2]
[327349998,1716006632332,-155.66235203,0.00011124,2]
[327349999,1716006632342,-60641.19914863,0.00011125,2]
[327350000,1716006632352,-722.37,0.00011125,2]
[327350001,1716006632362,-155.36422093,0.00011134,2]
[327350002,1716006632371,-740.15777175,0.00011135,2]
[327350003,1716006632380,-499.99,0.00011135,2]
[327350004,1716006632390,-2684.56,0.00011135,2]
[327350005,1716006632400,-1338.23,0.00011135,2]
[327350006,1716006632409,-10487.62,0.00011135,2]
[327350007,1716006632418,-161.43,0.00011135,2]
[327350008,1716006632427,-866.81099653,0.00011142,2]
[327350009,1716006632437,-1788.03912655,0.00011242,2]
[327350010,1716006632446,-1392.68135622,0.00011348,2]
[327350011,1716006632455,-150.46,0.00011387,2]
[327350012,1716006632464,-150.46,0.00011391,2]
[327350013,1716006632473,-150.46,0.00011396,2]
[327350014,1716006632483,-150.46,0.000114,2]
[327350015,1716006632494,-150.46,0.00011404,2]
[327350016,1716006632503,-150.46,0.00011409,2]
[327350017,1716006632512,-150.46,0.00011413,2]
[327350018,1716006632522,-150.46,0.00011418,2]
[327350019,1716006632532,-150.46,0.00011422,2]
[327350020,1716006632541,-150.46,0.00011426,2]
[327350021,1716006632551,-150.46,0.00011431,2]
[327350022,1716006632560,-150.46,0.00011435,2]
[327350023,1716006632571,-150.46,0.0001144,2]
[327350024,1716006632580,-150.46,0.00011444,2]
[327350025,1716006632589,-1002.55013783,0.00011459,2]
[327350026,1716006632598,-150.99,0.00011459,2]
[327350027,1716006632607,-9999.99,0.00011459,2]
[327350028,1716006632617,-262.77384878,0.0001146,2]
[327350029,1716006632626,-40395.40547812,0.0001146,2]
[327350030,1716006632850,-291.47408173,0.0001146,2]
[327350031,1716006632871,-8834.09873747,0.0001146,2]
[327350032,1716006632885,-324378.24640435,0.0001146,2]
[327350033,1716006632894,-41891.067,0.0001146,2]
[327350034,1716006632903,-155.42078879,0.00011461,2]
[327350035,1716006632914,-2232.51246975,0.00011461,2]
[327350036,1716006632923,-19608.90253833,0.000116,2]
[327350037,1716006632933,-1370.31,0.00011634,2]
[327350038,1716006632943,-200.0,0.00011747,2]
[327350039,1716006632952,-1102.43018749,0.00011999,2]
[327350040,1716006632962,-5000.0,0.00012,2]
[327350041,1716006632972,-2102.88,0.00012,2]
[327350042,1716006632981,-182.17,0.00012033,2]
[327350043,1716006632990,-180.0,0.00012175,2]
[327350045,1716006633001,-210.0,0.00012225,2]
[327350047,1716006633010,-210.0,0.00012225,2]
[327350048,1716006633019,-522.26504966,0.00012889,2]
[327350049,1716006633027,-1375.73110909,0.00012898,2]
[327350050,1716006633036,-164.29,0.00012961,2]
[327350051,1716006633045,-457.62510194,0.00013,2]
[327350052,1716006633055,-362.48389235,0.00013,2]
[327350053,1716006633064,-152.46,0.0001337,15]
[327350054,1716006633073,-250.0,0.00013596,2]
[327350055,1716006633082,-225.83,0.00013596,2]
[327350056,1716006633092,-166.78278404,0.00013689,2]
[327350057,1716006633101,-2751.0,0.00013699,2]
[327350058,1716006633110,-500.0,0.00013699,2]
[327350059,1716006633120,-250.0,0.00013699,2]
[327350060,1716006633129,-150.02,0.00013973,2]
[327350061,1716006633138,-171.26,0.00013973,2]
[327350062,1716006633148,-1688.1,0.00014029,2]
[327350063,1716006633158,-2891.67,0.00014136,2]
[327350064,1716006633167,-150.0,0.00014163,2]
[327350065,1716006633176,-508.86,0.00014241,2]
[327350066,1716006633186,-23900.0,0.00014944,2]
[327350067,1716006633197,-309.76,0.00014968,2]
[327350068,1716006633206,-200.0,0.00014972,2]
[327350069,1716006633215,-618.72089771,0.00015,2]
[327350070,1716006633224,-391.03167349,0.00015,2]
[327350071,1716006633235,-4215.20892645,0.00015,2]
[327350072,1716006633246,-1375.73110909,0.00015087,2]
[327350073,1716006633255,-522.2650496,0.00015087,2]
[327350074,1716006633264,-164.29,0.00015225,2]
[327350075,1716006633273,-1655.0,0.000159,2]
[327350076,1716006633282,-167.34,0.00016272,2]
[327350077,1716006633292,-621.1765,0.0001629,2]
[327350078,1716006633303,-257.87370428,0.00016304,2]
[327350079,1716006633313,-138.98708929,0.000165,2]
[327350080,1716006633326,-1087.75500168,0.000165,2]
[327350081,1716006633336,-167.0,0.00016712,2]
[327350082,1716006633345,-1688.1,0.00016769,2]
[327350083,1716006633354,-309.76,0.00016839,2]
[327350084,1716006633364,-174.4,0.00016915,2]
[327350085,1716006633374,-155.0,0.00017,2]
[327350086,1716006633383,-206.76817049,0.00017257,2]
[327350087,1716006633392,-2185.42797665,0.00017258,2]
[327350088,1716006633402,-155.22111098,0.00017259,2]
[327350089,1716006633412,-167.0,0.00017264,2]
[327350090,1716006633422,-164.29,0.00017489,2]
[327350091,1716006633434,-167.0,0.00017816,2]
[327350092,1716006633443,-155.0,0.00018,2]
[327350093,1716006633454,-167.0,0.00018367,2]
[327350094,1716006633463,-309.76,0.0001871,2]
[327350095,1716006633473,-1375.73110909,0.00018813,2]
[327350096,1716006633482,-522.2650496,0.00018813,2]
[327350097,1716006633493,-167.0,0.00018919,2]
[327350098,1716006633502,-23424.18038681,0.00019,5]
[327350099,1716006633512,-4895.0,0.00019078,2]
[327350100,1716006633520,-3879.18657409,0.000192,2]
[327350101,1716006633529,-167.0,0.00019471,2]
[327350102,1716006633540,-472.11273273,0.000195,2]
[327350103,1716006633551,-1688.1,0.00019509,2]
[327350104,1716006633562,-164.29,0.00019753,2]